fUSD/lending_fUSD_20250514
["ID","MTS","AMOUNT","RATE_DAILY","PERIOD"]
[361045583,1747212662914,-735.02,0.00014287,2]
[361045584,1747212662924,-1174.23,0.00014287,2]
[361045585,1747212662934,-1532.02,0.00014287,2]
[361045586,1747212662944,-20480.08,0.00014287,2]
[361045587,1747212662954,-1724.29,0.00014287,2]
[361045588,1747212662964,-15459.26,0.00014287,2]
[361045589,1747212662974,-22138.74,0.00014287,2]
[361045590,1747212662984,-400.0,0.00014287,2]
[361045591,1747212662995,-1901.78,0.00014287,2]
[361045592,1747212663006,-24898.96,0.00014287,2]
[361045593,1747212663016,-400.0,0.00014287,2]
[361045594,1747212663028,-3889.35,0.00014287,2]
[361045595,1747212663038,-1717.1,0.00014287,2]
[361045596,1747212663049,-400.0,0.00014287,2]
[361045597,1747212663060,-520.96,0.00014287,2]
[361045598,1747212663070,-2264.97,0.00014287,2]
[361045599,1747212663079,-400.0,0.00014287,2]
[361045600,1747212663090,-664.05,0.00014287,2]
[361045601,1747212663099,-400.0,0.00014287,2]
[361045602,1747212663110,-469.99,0.00014287,2]
[361045603,1747212663119,-1956.27,0.00014287,2]
[361045604,1747212663130,-151.0,0.00014287,2]
[361045605,1747212663145,-298.29701569,0.00014341,2]
[361045606,1747212663156,-823.0,0.00014407,2]
[361045607,1747212663166,-499.99,0.00014504,2]
[361045608,1747212663176,-6411.08,0.00014504,2]
[361045609,1747212663186,-1380.73,0.00014504,2]
[361045610,1747212663196,-5485.636796,0.00014551,2]
[361045611,1747212663207,-713.39,0.0001456,2]
[361045612,1747212663217,-500.0,0.0001456,2]
[361045613,1747212663227,-1769.42,0.0001456,2]
[361045614,1747212663238,-427.16,0.0001456,2]
[361045615,1747212663248,-17816.0,0.0001456,2]
[361045616,1747212663258,-430.31,0.0001456,2]
[361045617,1747212663267,-628.05,0.0001456,2]
[361045618,1747212663278,-4836.25,0.0001456,2]
[361045619,1747212663288,-1348.75,0.0001456,2]
[361045620,1747212663299,-1521.19,0.0001456,2]
[361045621,1747212663309,-400.0,0.0001456,2]
[361045622,1747212663320,-480.55,0.0001456,2]
[361045623,1747212663330,-668.98,0.0001456,2]
[361045624,1747212663339,-430.3,0.0001456,2]
[361045625,1747212663349,-400.0,0.0001456,2]
[361045626,1747212663359,-509.21,0.0001456,2]
[361045627,1747212663369,-244.2018674,0.0001456,2]
[361045628,1747212663379,-2789.98,0.0001456,2]
[361045629,1747212663394,-1989.58,0.0001456,2]
[361045630,1747212663404,-6723.97,0.0001456,2]
[361045631,1747212663414,-11464.28,0.0001456,2]
[361045632,1747212663425,-2391.36,0.0001456,2]
[361045633,1747212663434,-614.14,0.0001456,2]
[361045634,1747212663445,-5378.41,0.0001456,2]
[361045635,1747212663455,-1868.1,0.0001456,2]
[361045636,1747212663465,-400.0,0.0001456,2]
[361045637,1747212663475,-753.17,0.0001456,2]
[361045638,1747212663486,-2175.0,0.0001456,2]
[361045639,1747212663495,-3011.87,0.0001456,2]
[361045640,1747212663506,-13676.86,0.0001456,2]
[361045641,1747212663515,-528.71,0.0001456,2]
[361045642,1747212663525,-4037.31,0.0001456,2]
[361045643,1747212663537,-1269.6,0.0001456,2]
[361045644,1747212663547,-7881.18,0.0001456,2]
[361045645,1747212663556,-2188.86,0.0001456,2]
[361045646,1747212663566,-400.0,0.0001456,2]
[361045647,1747212663577,-4201.44,0.0001456,2]
[361045648,1747212663587,-206.00078361,0.0001456,2]
[361045649,1747212663597,-728.81,0.0001456,2]
[361045650,1747212663607,-400.0,0.0001456,2]
[361045651,1747212663619,-400.0,0.0001456,2]
[361045652,1747212663630,-9541.87,0.0001456,2]
[361045653,1747212663644,-540.26,0.0001456,2]
[361045654,1747212663654,-2971.26,0.0001456,2]
[361045655,1747212663664,-6394.05,0.0001456,2]
[361045656,1747212663675,-8616.98,0.0001456,2]
[361045657,1747212663685,-565.48,0.0001456,2]
[361045658,1747212663695,-407.38,0.0001456,2]
[361045659,1747212663705,-747.7,0.0001456,2]
[361045660,1747212663715,-4353.57,0.0001456,2]
[361045661,1747212663725,-3223.62,0.0001456,2]
[361045662,1747212663734,-400.0,0.00014561,2]
[361045663,1747212663744,-400.0,0.00014561,2]
[361045664,1747212663753,-460.82,0.00014561,2]
[361045665,1747212663763,-428.28,0.00014561,2]
[361045666,1747212663773,-400.0,0.00014561,2]
[361045667,1747212663783,-400.0,0.00014561,2]
[361045668,1747212663792,-546.33,0.00014561,2]
[361045669,1747212663801,-889.65,0.00014561,2]
[361045670,1747212663811,-383.04400421,0.00014561,2]
[361045671,1747212663822,-400.0,0.00014561,2]
[361045672,1747212663831,-583.66,0.00014561,2]
[361045673,1747212663840,-400.0,0.00014561,2]
[361045674,1747212663850,-1600.14,0.00014561,2]
[361045675,1747212663860,-1040.08,0.00014561,2]
[361045676,1747212663870,-400.0,0.00014561,2]
[361045677,1747212663880,-1802.3,0.00014561,2]
[361045678,1747212663893,-1221.23,0.00014561,2]
[361045679,1747212663903,-1895.91,0.00014561,2]
[361045680,1747212663913,-492.84,0.00014561,2]
[361045681,1747212663924,-1506.57,0.00014561,2]
[361045682,1747212663934,-2563.99,0.00014561,2]
[361045683,1747212663946,-840.38,0.00014561,2]
[361045684,1747212663956,-482.41,0.00014561,2]
[361045685,1747212663967,-420.5,0.00014561,2]
[361045686,1747212663977,-400.0,0.00014561,2]
[361045687,1747212663987,-527.69,0.00014561,2]
[361045688,1747212663997,-18564.33,0.00014561,2]
[361045689,1747212664007,-1343.88,0.00014561,2]
[361045690,1747212664017,-2099.34,0.00014561,2]
[361045691,1747212664028,-7356.73,0.00014561,2]
[361045692,1747212664037,-400.0,0.00014561,2]
[361045693,1747212664047,-3060.21,0.00014561,2]
[361045694,1747212664058,-400.0,0.00014561,2]
[361045695,1747212664069,-7402.41,0.00014561,2]
[361045696,1747212664080,-988.29,0.00014561,2]
[361045697,1747212664090,-1425.89,0.00014561,2]
[361045698,1747212664101,-703.29,0.00014561,2]
[361045699,1747212664112,-400.0,0.00014561,2]
[361045700,1747212664122,-400.0,0.00014561,2]
[361045701,1747212664132,-569.77,0.00014561,2]
[361045702,1747212664144,-945.01,0.00014561,2]
[361045703,1747212664154,-895.63,0.00014561,2]
[361045704,1747212664164,-735.02,0.00014561,2]
[361045705,1747212664175,-1174.23,0.00014561,2]
[361045706,1747212664185,-1532.02,0.00014561,2]
[361045707,1747212664195,-20480.08,0.00014561,2]
[361045708,1747212664204,-1724.29,0.00014561,2]
[361045709,1747212664214,-15459.26,0.00014561,2]
[361045710,1747212664225,-22138.74,0.00014561,2]
[361045711,1747212664236,-400.0,0.00014561,2]
[361045712,1747212664247,-1901.78,0.00014561,2]
[361045713,1747212664257,-24898.96,0.00014561,2]
[361045714,1747212664267,-507.27009,0.00014561,2]
[361045715,1747212664279,-507.27009,0.00014561,2]
[361045716,1747212664289,-400.0,0.00014561,2]
[361045717,1747212664299,-151.0,0.00014561,2]
[361045718,1747212664310,-3889.35,0.00014561,2]
[361045719,1747212664320,-1953.704317,0.00014561,2]
[361045720,1747212664331,-1717.1,0.00014561,2]
[361045721,1747212664342,-276.49619112,0.00014561,2]
[361045722,1747212664352,-520.96,0.00014561,2]
[361045723,1747212664362,-2264.97,0.00014561,2]
[361045724,1747212664373,-400.0,0.00014561,2]
[361045725,1747212664383,-664.05,0.00014561,2]
[361045726,1747212664396,-400.0,0.00014561,2]
[361045727,1747212664406,-469.99,0.00014561,2]
[361045728,1747212664416,-1956.27,0.00014561,2]
[361045729,1747212664428,-9753.59996745,0.00014659,2]
[361045730,1747212664437,-303.85,0.00014698,2]
[361045731,1747212664447,-304.05,0.00014698,2]
[361045732,1747212664459,-1500.0,0.00014795,2]
[361045733,1747212664470,-529.53410865,0.00014795,2]
[361045734,1747212664480,-713.39,0.00014834,2]
[361045735,1747212664490,-1769.42,0.00014834,2]
[361045736,1747212664501,-427.16,0.00014834,2]
[361045737,1747212664511,-17816.0,0.00014834,2]
[361045738,1747212664521,-430.31,0.00014834,2]
[361045739,1747212664533,-628.05,0.00014834,2]
[361045740,1747212664546,-4836.25,0.00014834,2]
[361045741,1747212664556,-1348.75,0.00014834,2]
[361045742,1747212664565,-1521.19,0.00014834,2]
[361045743,1747212664576,-400.0,0.00014834,2]
[361045744,1747212664586,-480.55,0.00014834,2]
[361045745,1747212664596,-668.98,0.00014834,2]
[361045746,1747212664605,-430.3,0.00014834,2]
[361045747,1747212664615,-400.0,0.00014834,2]
[361045748,1747212664626,-509.21,0.00014834,2]
[361045749,1747212664636,-2789.98,0.00014834,2]
[361045750,1747212664651,-1989.58,0.00014834,2]
[361045751,1747212664662,-6723.97,0.00014834,2]
[361045752,1747212664672,-11464.28,0.00014834,2]
[361045753,1747212664683,-2391.36,0.00014834,2]
[361045754,1747212664694,-614.14,0.00014834,2]
[361045755,1747212664704,-5378.41,0.00014834,2]
[361045756,1747212664714,-1868.1,0.00014834,2]
[361045757,1747212664725,-162.11676294,0.00014834,2]
[361045758,1747212664735,-753.17,0.00014834,2]
[361045759,1747212664746,-2175.0,0.00014834,2]
[361045760,1747212664755,-3011.87,0.00014834,2]
[361045761,1747212664765,-13676.86,0.00014834,2]
[361045762,1747212664775,-528.71,0.00014834,2]
[361045763,1747212664785,-4037.31,0.00014834,2]
[361045764,1747212664795,-1269.6,0.00014834,2]
[361045765,1747212664804,-7881.18,0.00014834,2]
[361045766,1747212664815,-2188.86,0.00014834,2]
[361045767,1747212664825,-400.0,0.00014834,2]
[361045768,1747212664835,-4201.44,0.00014834,2]
[361045769,1747212664844,-728.81,0.00014834,2]
[361045770,1747212664854,-382.38790455,0.00014834,2]
[361045771,1747212664864,-158.01,0.00014834,2]
[361045772,1747212664875,-9541.87,0.00014834,2]
[361045773,1747212664885,-540.26,0.00014834,2]
[361045774,1747212664901,-2971.26,0.00014834,2]
[361045775,1747212664911,-6394.05,0.00014834,2]
[361045776,1747212664923,-8616.98,0.00014834,2]
[361045777,1747212664935,-565.48,0.00014834,2]
[361045778,1747212664946,-407.38,0.00014834,2]
[361045779,1747212664957,-747.7,0.00014834,2]
[361045780,1747212664967,-4353.57,0.00014834,2]
[361045781,1747212664977,-3223.62,0.00014834,2]
[361045782,1747212664988,-400.0,0.00014835,2]
[361045783,1747212664998,-400.0,0.00014835,2]
[361045784,1747212665008,-460.82,0.00014835,2]
[361045785,1747212665019,-428.28,0.00014835,2]
[361045786,1747212665030,-400.0,0.00014835,2]
[361045787,1747212665040,-400.0,0.00014835,2]
[361045788,1747212665050,-546.33,0.00014835,2]
[361045789,1747212665060,-889.65,0.00014835,2]
[361045790,1747212665070,-400.0,0.00014835,2]
[361045791,1747212665080,-583.66,0.00014835,2]
[361045792,1747212665090,-400.0,0.00014835,2]
[361045793,1747212665100,-1600.14,0.00014835,2]
[361045794,1747212665111,-1040.08,0.00014835,2]
[361045795,1747212665120,-400.0,0.00014835,2]
[361045796,1747212665130,-1802.3,0.00014835,2]
[361045797,1747212665143,-1221.23,0.00014835,2]
[361045798,1747212665153,-1895.91,0.00014835,2]
[361045799,1747212665163,-492.84,0.00014835,2]
[361045800,1747212665172,-1506.57,0.00014835,2]
[361045801,1747212665182,-2563.99,0.00014835,2]
[361045802,1747212665193,-840.38,0.00014835,2]
[361045803,1747212665204,-482.41,0.00014835,2]
[361045804,1747212665214,-420.5,0.00014835,2]
[361045805,1747212665225,-400.0,0.00014835,2]
[361045806,1747212665235,-527.69,0.00014835,2]
[361045807,1747212665246,-18564.33,0.00014835,2]
[361045808,1747212665255,-1343.88,0.00014835,2]
[361045809,1747212665265,-2099.34,0.00014835,2]
[361045810,1747212665275,-7356.73,0.00014835,2]
[361045811,1747212665285,-342.97237762,0.00014835,2]
[361045812,1747212665295,-3060.21,0.00014835,2]
[361045813,1747212665305,-400.0,0.00014835,2]
[361045814,1747212665314,-7402.41,0.00014835,2]
[361045815,1747212665324,-988.29,0.00014835,2]
[361045816,1747212665335,-1425.89,0.00014835,2]
[361045817,1747212665345,-703.29,0.00014835,2]
[361045818,1747212665355,-400.0,0.00014835,2]
[361045819,1747212665366,-283.60600044,0.00014835,2]
[361045820,1747212665376,-569.77,0.00014835,2]
[361045821,1747212665387,-945.01,0.00014835,2]
[361045822,1747212665401,-895.63,0.00014835,2]
[361045823,1747212665412,-3315.447096,0.00014835,2]
[361045824,1747212665422,-3315.447096,0.00014835,2]
[361045825,1747212665432,-735.02,0.00014835,2]
[361045826,1747212665441,-1174.23,0.00014835,2]
[361045827,1747212665451,-1532.02,0.00014835,2]
[361045828,1747212665461,-455.502423,0.00014835,2]
[361045829,1747212665471,-455.502423,0.00014835,2]
[361045830,1747212665481,-20480.08,0.00014835,2]
[361045831,1747212665491,-375.483124,0.00014835,2]
[361045832,1747212665501,-375.483124,0.00014835,2]
[361045833,1747212665510,-1724.29,0.00014835,2]
[361045834,1747212665520,-239.305926,0.00014835,2]
[361045835,1747212665530,-239.305926,0.00014835,2]
[361045836,1747212665544,-15459.26,0.00014835,2]
[361045837,1747212665555,-22138.74,0.00014835,2]
[361045838,1747212665565,-400.0,0.00014835,2]
[361045839,1747212665576,-1901.78,0.00014835,2]
[361045840,1747212665587,-24898.96,0.00014835,2]
[361045841,1747212665597,-400.0,0.00014835,2]
[361045842,1747212665607,-3889.35,0.00014835,2]
[361045843,1747212665617,-1717.1,0.00014835,2]
[361045844,1747212665627,-520.96,0.00014835,2]
[361045845,1747212665637,-2264.97,0.00014835,2]
[361045846,1747212665650,-291.2920678,0.00014835,2]
[361045847,1747212665659,-664.05,0.00014835,2]
[361045848,1747212665669,-236.95156694,0.00014835,2]
[361045849,1747212665679,-469.99,0.00014835,2]
[361045850,1747212665689,-1956.27,0.00014835,2]
[361045851,1747212665699,-6037.54397752,0.000149,2]
[361045852,1747212665709,-218.1278393,0.000149,2]
[361045853,1747212665720,-218.12783929,0.000149,2]
[361045854,1747212665730,-218.12783929,0.000149,2]
[361045855,1747212665740,-547.70630092,0.00014999,2]
[361045856,1747212665750,-7712.7964809,0.00015,2]
[361045857,1747212665759,-18341.03353954,0.00015,2]
[361045858,1747212665768,-161.69676806,0.00015,2]
[361045859,1747212665778,-248.56,0.00015016,2]
[361045860,1747212665787,-150.0,0.00015068,2]
[361045861,1747212665797,-300.0,0.00015068,2]
[361045862,1747212665807,-6399.48,0.000151,2]
[361045863,1747212665817,-713.39,0.00015108,2]
[361045864,1747212665828,-1769.42,0.00015108,2]
[361045865,1747212665838,-427.16,0.00015108,2]
[361045866,1747212665847,-17816.0,0.00015108,2]
[361045867,1747212665857,-430.31,0.00015108,2]
[361045868,1747212665867,-628.05,0.00015108,2]
[361045869,1747212665876,-4836.25,0.00015108,2]
[361045870,1747212665886,-1348.75,0.00015108,2]
[361045871,1747212665898,-1521.19,0.00015108,2]
[361045872,1747212665908,-400.0,0.00015108,2]
[361045873,1747212665917,-480.55,0.00015108,2]
[361045874,1747212665927,-668.98,0.00015108,2]
[361045875,1747212665936,-430.3,0.00015108,2]
[361045876,1747212665946,-400.0,0.00015108,2]
[361045877,1747212665956,-509.21,0.00015108,2]
[361045878,1747212665965,-2789.98,0.00015108,2]
[361045879,1747212665975,-1989.58,0.00015108,2]
[361045880,1747212665985,-6723.97,0.00015108,2]
[361045881,1747212665995,-11464.28,0.00015108,2]
[361045882,1747212666005,-1901.45150968,0.00015108,2]
[361045883,1747212666188,-489.90849032,0.00015108,2]
[361045884,1747212666198,-511.07412684,0.00015108,2]
[361045885,1747212666226,-271.56500004,0.00011272,2]
[361045886,1747212666526,-128.43499996,0.00011272,2]
[361045887,1747212666538,-400.0,0.00011546,2]
[361045888,1747212666548,-400.0,0.0001182,2]
[361045889,1747212666561,-400.0,0.00012094,2]
[361045890,1747212666571,-400.0,0.00012368,2]
[361045891,1747212666581,-400.0,0.00012642,2]
[361045892,1747212666591,-3749.72,0.00012916,2]
[361045893,1747212666601,-461.64,0.00012916,2]
[361045894,1747212666611,-400.0,0.00012916,2]
[361045895,1747212666620,-3749.72,0.0001319,2]
[361045896,1747212666630,-461.64,0.0001319,2]
[361045897,1747212666640,-400.0,0.0001319,2]
[361045898,1747212666651,-3749.72,0.00013464,2]
[361045899,1747212666831,-461.64,0.00013464,2]
[361045900,1747212666842,-178.69865749,0.00013464,2]
[361045901,1747212666851,-9.12819523,0.00013738,2]
[361045902,1747212741402,198.84,8.219e-05,2]
[361045903,1747212862773,1000.0,9.991e-05,2]
[361045904,1747213247441,150.0,9.991e-05,7]
[361045911,1747213782253,188.89,8.477e-05,2]
[361045943,1747213831780,-165.65,0.00010291,2]
[361045944,1747213831790,-188.89,0.00010741,2]
[361045945,1747213831800,-150.0,0.00010842,2]
[361045946,1747213831810,-1200.0,0.00010842,2]
[361045947,1747213831819,-300.0,0.00010842,2]
[361045948,1747213831829,-55.46,0.00010843,2]
[361045949,1747213831840,-444.54,0.00010843,2]
[361045950,1747213831853,-500.0,0.00010843,2]
[361045951,1747213831863,-261.68131993,0.00010843,2]
[361045952,1747213831875,-238.31868007,0.00010843,2]
[361045953,1747213831886,-500.0,0.00010843,2]
[361045954,1747213831897,-500.0,0.00010843,2]
[361045955,1747213831907,-500.0,0.00010843,2]
[361045956,1747213831917,-500.0,0.00010843,2]
[361045957,1747213831927,-500.0,0.00010843,2]
[361045958,1747213831936,-500.0,0.00010843,2]
[361045959,1747213831945,-500.0,0.00010843,2]
[361045960,1747213831955,-500.0,0.00010843,2]
[361045961,1747213831964,-500.0,0.00010843,2]
[361045962,1747213831974,-500.0,0.00010843,2]
[361045963,1747213831983,-500.0,0.00010843,2]
[361045964,1747213831992,-500.0,0.00010843,2]
[361045965,1747213832002,-500.0,0.00010843,2]
[361045966,1747213832011,-500.0,0.00010843,2]
[361045967,1747213832021,-500.0,0.00010843,2]
[361045968,1747213832030,-500.0,0.00010843,2]
[361045969,1747213832039,-500.0,0.00010843,2]
[361045970,1747213832048,-500.0,0.00010843,2]
[361045971,1747213832058,-642.23249343,0.00010843,2]
[361045972,1747213832067,-500.0,0.00010843,2]
[361045973,1747213832076,-500.0,0.00010843,2]
[361045974,1747213832086,-500.0,0.00010843,2]
[361045975,1747213832095,-500.0,0.00010843,2]
[361045976,1747213832104,-500.0,0.00010843,2]
[361045977,1747213832113,-500.0,0.00010843,2]
[361045978,1747213832123,-500.0,0.00010843,2]
[361045979,1747213832133,-500.0,0.00010843,2]
[361045980,1747213832143,-500.0,0.00010843,2]
[361045981,1747213832152,-500.0,0.00010843,2]
[361045982,1747213832161,-500.0,0.00010843,2]
[361045983,1747213832171,-500.0,0.00010843,2]
[361045984,1747213832180,-500.0,0.00010843,2]
[361045985,1747213832189,-500.0,0.00010843,2]
[361045986,1747213832198,-500.0,0.00010843,2]
[361045987,1747213832207,-500.0,0.00010843,2]
[361045989,1747213832217,-500.0,0.00010843,2]
[361045991,1747213832226,-500.0,0.00010843,2]
[361045993,1747213832234,-500.0,0.00010843,2]
[361045994,1747213832243,-500.0,0.00010843,2]
[361045995,1747213832252,-500.0,0.00010843,2]
[361045996,1747213832262,-500.0,0.00010843,2]
[361045997,1747213832271,-500.0,0.00010843,2]
[361045998,1747213832280,-500.0,0.00010843,2]
[361046000,1747213832289,-500.0,0.00010843,2]
[361046001,1747213832299,-500.0,0.00010843,2]
[361046002,1747213832308,-500.0,0.00010843,2]
[361046003,1747213832318,-500.0,0.00010843,2]
[361046004,1747213832327,-500.0,0.00010843,2]
[361046005,1747213832338,-500.0,0.00010843,2]
[361046006,1747213832347,-500.0,0.00010843,2]
[361046007,1747213832356,-500.0,0.00010843,2]
[361046008,1747213832365,-500.0,0.00010843,2]
[361046009,1747213832374,-500.0,0.00010843,2]
[361046010,1747213832385,-500.0,0.00010843,2]
[361046011,1747213832394,-500.0,0.00010843,2]
[361046012,1747213832403,-500.0,0.00010843,2]
[361046013,1747213832413,-500.0,0.00010843,2]
[361046014,1747213832422,-400.0,0.00010843,2]
[361046015,1747213832432,-500.0,0.00010843,2]
[361046016,1747213832441,-596.2876,0.00010898,2]
[361046017,1747213832451,-65240.298,0.00010898,2]
[361046018,1747213832460,-7515.58708246,0.00010921,2]
[361046019,1747213832470,-400.0,0.00010997,2]
[361046020,1747213832480,-400.0,0.00010997,2]
[361046021,1747213832490,-600.05,0.00010997,2]
[361046022,1747213832500,-400.0,0.00010997,2]
[361046023,1747213832510,-400.0,0.00010997,2]
[361046024,1747213832520,-400.0,0.00010997,2]
[361046025,1747213832529,-539.13142008,0.00010997,2]
[361046026,1747213832539,-457.96,0.00010997,2]
[361046027,1747213832548,-400.0,0.00010997,2]
[361046028,1747213832557,-450.0,0.00010997,2]
[361046029,1747213832567,-400.0,0.00010997,2]
[361046030,1747213832576,-456.13003573,0.00010997,2]
[361046031,1747213832586,-400.0,0.00010997,2]
[361046032,1747213832595,-400.0,0.00010997,2]
[361046033,1747213832605,-444.01,0.00010997,2]
[361046034,1747213832614,-503.96,0.00010997,2]
[361046035,1747213832623,-400.0,0.00010997,2]
[361046036,1747213832634,-440.34,0.00010997,2]
[361046037,1747213832643,-400.0,0.00010997,2]
[361046038,1747213832652,-400.0,0.00010997,2]
[361046039,1747213832662,-292.43481108,0.00010997,2]
[361046040,1747213832672,-1147.58,0.00010997,2]
[361046041,1747213832682,-400.0,0.00010997,2]
[361046042,1747213832692,-2775.91,0.00010997,2]
[361046043,1747213832701,-400.0,0.00010997,2]
[361046044,1747213832711,-929.99,0.00010997,2]
[361046045,1747213832721,-664.33,0.00010997,2]
[361046046,1747213832730,-3821.43,0.00010997,2]
[361046047,1747213832740,-400.0,0.00010997,2]
[361046048,1747213832750,-2016.9,0.00010997,2]
[361046049,1747213832759,-400.0,0.00010997,2]
[361046050,1747213832768,-471.18,0.00010997,2]
[361046051,1747213832778,-815.63,0.00010997,2]
[361046052,1747213832788,-3370.59,0.00010997,2]
[361046053,1747213832798,-1482.29,0.00010997,2]
[361046054,1747213832807,-400.0,0.00010997,2]
[361046055,1747213832816,-4499.48,0.00010997,2]
[361046056,1747213832826,-400.0,0.00010997,2]
[361046057,1747213832836,-2059.88,0.00010997,2]
[361046058,1747213832848,-3936.61,0.00010997,2]
[361046059,1747213832858,-525.53293808,0.00010997,2]
[361046060,1747213832868,-706.29,0.00010997,2]
[361046061,1747213832877,-400.0,0.00010997,2]
[361046062,1747213832889,-383.03048656,0.00010997,2]
[361046063,1747213832899,-14485.23,0.00010997,2]
[361046064,1747213832908,-400.0,0.00010997,2]
[361046065,1747213832917,-400.0,0.00010997,2]
[361046066,1747213832927,-713.17,0.00010997,2]
[361046067,1747213832937,-11319.8,0.00010997,2]
[361046068,1747213832947,-8568.46,0.00010997,2]
[361046069,1747213832956,-400.0,0.00010997,2]
[361046070,1747213832966,-400.0,0.00010997,2]
[361046071,1747213832975,-2860.53,0.00010997,2]
[361046072,1747213832985,-2397.77,0.00010997,2]
[361046073,1747213832994,-797.12,0.00010997,2]
[361046074,1747213833004,-400.0,0.00010997,2]
[361046075,1747213833013,-3809.38,0.00010997,2]
[361046076,1747213833023,-700.54,0.00010997,2]
[361046077,1747213833032,-5659.43,0.00010997,2]
[361046078,1747213833042,-829.61,0.00010997,2]
[361046079,1747213833052,-705.9,0.00010997,2]
[361046080,1747213833062,-400.0,0.00010997,2]
[361046081,1747213833071,-400.0,0.00010997,2]
[361046082,1747213833081,-1514.0,0.00010997,2]
[361046083,1747213833090,-574.5,0.00010997,2]
[361046084,1747213833100,-400.0,0.00010997,2]
[361046085,1747213833110,-733.61,0.00010997,2]
[361046086,1747213833119,-415.85183662,0.00010997,2]
[361046087,1747213833128,-2757.28768246,0.00010997,2]
[361046088,1747213833142,-1402.72231754,0.00010997,2]
[361046089,1747213833151,-127.15309975,0.00010997,2]
[361046090,1747213833170,-3451.04690025,0.00010997,2]
[361046091,1747213833180,-646.61,0.00010997,2]
[361046092,1747213833189,-166.54590517,0.00010997,2]
[361046093,1747213833200,-3064.82409483,0.00010997,2]
[361046094,1747213833210,-5797.22,0.00010997,2]
[361046095,1747213833219,-8302.02,0.00010997,2]
[361046096,1747213833229,-349.28065342,0.00010997,2]
[361046097,1747213833238,-500.0,0.00010997,2]
[361046098,1747213833249,-400.0,0.00010997,2]
[361046099,1747213833258,-400.0,0.00010997,2]
[361046100,1747213833267,-1672.1134622,0.00010997,2]
[361046101,1747213833284,-1191.78900694,0.00010997,2]
[361046102,1747213833299,-351.92574701,0.00010997,2]
[361046103,1747213833310,-6121.28178385,0.00010997,2]
[361046104,1747213833320,-73.63293615,0.00010998,2]
[361046105,1747213833331,-476.28559815,0.00010998,2]
[361046106,1747213833341,-404.47606977,0.00010998,2]
[361046107,1747213833351,-400.0,0.00010998,2]
[361046108,1747213833360,-245.26478979,0.00010998,2]
[361046109,1747213833372,-154.73521021,0.00010998,2]
[361046110,1747213833381,-400.0,0.00010998,2]
[361046111,1747213833392,-181.42384679,0.00010998,2]
[361046112,1747213833409,-218.57615321,0.00010998,2]
[361046113,1747213833419,-400.0,0.00010998,2]
[361046114,1747213833428,-400.0,0.00010998,2]
[361046115,1747213833438,-400.0,0.00010998,2]
[361046116,1747213833447,-163.0491816,0.00011,2]
[361046117,1747213833456,-1993.588,0.00011072,2]
[361046118,1747213833465,-1481.4130984,0.00011099,2]
[361046119,1747213833475,-563.19385663,0.00011133,2]
[361046120,1747213833484,-172.85706745,0.00011133,2]
[361046121,1747213833495,-400.0,0.0001117,2]
[361046122,1747213833504,-400.0,0.0001117,2]
[361046123,1747213833514,-400.0,0.00011171,2]